bitfinex/quotes_ETHUSD_20260302
["timestamp","ask_amount","ask_price","bid_price","bid_amount"]
[1772412414843,1.623,1958.6,1957.5,0.62232768]
[1772412415014,2.89944627,1958.6,1957.6,1.27707396]
[1772412415642,2.1820284,1958.9,1957.7,0.61667461]
[1772412415643,3.8040284,1958.9,1957.7,0.61667461]
[1772412415832,0.00153886,1959.0,1958.0,2.04584637]
[1772412416038,1.27771699,1959.0,1958.0,2.04584637]
[1772412416216,1.27771699,1959.0,1957.9,1.539]
[1772412416418,3.45974539,1959.0,1957.7,0.61667461]
[1772412416618,3.45974539,1959.0,1957.8,2.1500652]
[1772412416849,0.00153886,1959.0,1957.9,0.6110652]
[1772412417049,0.00153886,1959.0,1958.0,1.88227542]
[1772412417219,0.00153886,1959.0,1958.1,1.59817494]
[1772412417425,3.45766877,1959.8,1958.5,2.04584637]
[1772412417637,2.1820284,1959.8,1958.2,0.60546235]
[1772412417960,2.1820284,1959.8,1958.4,0.59833827]
[1772412418127,2.1820284,1959.8,1958.6,2.04584637]
[1772412418333,0.00153886,1960.0,1958.8,0.59833827]
[1772412418651,3.45909251,1960.0,1958.8,0.59833827]
[1772412418860,3.45909251,1960.0,1958.4,0.59833827]
[1772412418861,2.1820284,1959.9,1958.4,0.59833827]
[1772412419031,2.1820284,1959.7,1958.5,1.2764871]
[1772412419232,2.1820284,1959.5,1958.2,1.27668266]
[1772412419733,2.1820284,1959.5,1958.9,0.001]
[1772412421069,3.8020284,1959.4,1958.9,0.001]
[1772412421268,2.1820284,1959.4,1958.9,0.001]
[1772412423142,3.4579943,1959.3,1958.9,0.001]
[1772412423343,3.4579943,1959.3,1958.6,0.001]
[1772412423344,2.1820284,1959.2,1958.6,0.001]
[1772412423955,2.1820284,1959.2,1958.0,1.27832404]
[1772412424556,2.1820284,1959.2,1958.0,0.00153886]
[1772412425136,2.1820284,1959.0,1958.0,0.00153886]
[1772412425336,2.1820284,1958.8,1958.0,0.00153886]
[1772412425569,2.1820284,1958.6,1958.0,0.00153886]
[1772412425778,1.27609616,1959.1,1958.0,0.00153886]
[1772412425779,1.617,1958.8,1958.0,0.00153886]
[1772412426235,2.1820284,1958.7,1958.0,0.00153886]
[1772412426868,2.1820284,1959.1,1958.0,0.00153886]
[1772412427055,3.7980284,1959.5,1958.1,4.19378513]
[1772412427255,1.27590078,1959.4,1958.2,1.27668266]
[1772412427841,3.45792918,1959.4,1958.2,1.27668266]
[1772412429557,2.1820284,1959.4,1958.2,1.81631425]
[1772412430070,3.45794012,1959.4,1958.2,1.81631425]
[1772412430272,3.45794145,1959.4,1958.2,1.81631425]
[1772412430568,2.1820284,1959.3,1958.2,1.27668266]
[1772412431273,1.27603103,1959.2,1958.2,1.27668266]
[1772412431576,3.45805943,1959.2,1958.2,1.27668266]
[1772412431763,3.45766877,1959.8,1958.4,0.52904365]
[1772412432073,2.1820284,1959.6,1958.4,0.52904365]
[1772412433778,3.45780008,1959.6,1958.5,1.2764871]
[1772412433953,0.002,1959.3,1958.5,1.2764871]
[1772412434149,2.08475347,1959.3,1958.5,1.2764871]
[1772412435678,0.002,1959.3,1958.5,1.2764871]
[1772412436474,2.08475347,1959.3,1958.5,1.2764871]
[1772412437782,2.08475347,1959.3,1958.4,1.27653752]
[1772412438108,2.08475347,1959.3,1958.3,0.001]
[1772412438109,2.24112082,1959.1,1958.3,0.001]
[1772412438457,1.607,1959.0,1958.3,0.001]
[1772412438779,3.84812082,1959.0,1958.3,0.001]
[1772412439502,2.24112082,1959.0,1958.3,0.001]
[1772412440078,0.002,1959.3,1958.3,0.001]
[1772412440276,1.27797352,1959.3,1958.5,2.04341831]
[1772412440481,0.002,1959.3,1958.5,2.04341831]
[1772412440679,0.002,1959.3,1958.5,4.26274345]
[1772412441247,0.002,1959.3,1958.7,2.04341831]
[1772412441651,1.2779771,1959.3,1958.3,0.001]
[1772412441851,0.002,1959.3,1958.4,1.27655228]
[1772412442155,0.002,1959.3,1958.5,4.26274345]
[1772412442378,0.002,1959.3,1958.6,2.21932514]
[1772412443374,0.002,1959.3,1958.8,2.04341831]
[1772412444161,0.002,1959.4,1958.9,1.27622645]
[1772412444388,0.002,1959.6,1959.1,2.04341831]
[1772412444958,0.002,1959.6,1958.9,1.27622645]
[1772412445575,5.10233045,1960.7,1958.9,1.27622645]
[1772412445576,0.002,1960.2,1959.5,2.21932514]
[1772412445790,0.002,1960.2,1959.7,2.04341831]
[1772412446282,0.002,1960.2,1959.8,1.27564037]
[1772412448495,0.002,1960.2,1959.6,1.27577056]
[1772412448790,0.002,1960.2,1959.5,5.10324353]
[1772412448791,0.002,1960.2,1959.5,1.27579686]
[1772412448994,6.70050471,1960.6,1960.1,2.04341831]
[1772412448995,0.002,1960.6,1960.1,2.04341831]
[1772412449176,0.002,1960.6,1959.6,4.08683662]
[1772412449177,40.00153886,1961.0,1960.4,2.04341831]
[1772412449770,40.00153886,1961.0,1960.1,2.04341831]
[1772412450370,40.00153886,1961.0,1960.1,1.27544513]
[1772412450371,43.51753721,1961.0,1960.1,1.27544513]
[1772412451023,40.00153886,1961.0,1960.3,2.21932514]
[1772412451163,2.24112082,1961.5,1960.3,2.21932514]
[1772412452274,3.51550825,1961.8,1960.6,2.04341831]
[1772412452546,2.24112082,1961.8,1960.9,2.04341831]
[1772412453563,0.00153886,1962.0,1961.2,2.04341831]
[1772412453905,1.2757632,1962.0,1961.2,2.04341831]
[1772412454110,1.2757632,1962.0,1960.8,2.04341831]
[1772412454111,2.24112082,1961.9,1960.8,2.04341831]
[1772412454258,3.51559064,1961.6,1960.4,1.27524994]
[1772412454462,5.11959064,1961.6,1960.4,2.73188946]
[1772412454901,5.11959064,1961.6,1960.4,4.9512146]
[1772412455263,2.24112082,1961.5,1960.4,4.9512146]
[1772412455589,2.24112082,1961.5,1960.4,3.49457508]
[1772412456384,1.27459977,1961.4,1960.4,3.49457508]
[1772412457288,3.51572059,1961.4,1960.4,1.27524994]
[1772412457530,2.24112082,1961.3,1960.4,1.27524994]
[1772412458146,1.27459977,1961.4,1960.5,2.21932514]
[1772412458410,3.51507126,1962.4,1961.6,1.27446982]
[1772412458620,3.51507126,1962.4,1961.5,1.27449513]
[1772412458621,2.24112082,1962.3,1961.5,1.27449513]
[1772412459875,2.24112082,1962.3,1961.2,5.09868001]
[1772412460485,1.27408011,1962.2,1961.1,1.27472975]
[1772412460683,2.24112082,1962.1,1961.1,1.27472975]
[1772412460884,0.002,1961.7,1961.0,1.27635582]
[1772412461109,0.002,1961.7,1961.0,0.00153886]
[1772412461418,2.24312082,1961.7,1961.0,0.00153886]
[1772412461609,2.24312082,1961.7,1961.0,1.27638682]
[1772412462183,2.24312082,1961.7,1961.0,0.00153886]
[1772412462915,3.51752945,1961.7,1961.0,0.00153886]
[1772412463082,2.24112082,1961.6,1961.0,0.00153886]
[1772412463282,3.84112082,1961.5,1961.0,0.00153886]
[1772412464504,3.84112082,1961.5,1960.5,1.27614381]
[1772412464505,2.24112082,1961.3,1960.5,1.27614381]
[1772412464812,2.24112082,1961.1,1960.5,0.001]
[1772412465110,2.24112082,1960.9,1960.5,0.001]
[1772412465519,1.599,1961.0,1960.5,0.001]
[1772412466498,3.84012082,1961.0,1960.5,0.001]
[1772412466907,1.27492477,1960.9,1960.5,0.001]
[1772412467106,1.27492477,1960.9,1960.2,0.001]
[1772412467107,2.58837039,1960.6,1960.2,0.001]
[1772412467422,1.597,1960.5,1960.2,0.001]
[1772412468130,1.597,1960.5,1960.0,0.00153886]
[1772412468328,2.58837039,1960.4,1960.0,0.00153886]
[1772412468533,2.58837039,1960.4,1959.2,1.27603103]
[1772412468902,2.58837039,1960.2,1959.2,1.27603103]
[1772412469315,2.58837039,1960.2,1959.3,0.6]
[1772412470933,1.27544513,1960.1,1959.4,1.27590078]
[1772412471231,1.596,1960.0,1959.4,1.27590078]
[1772412473243,1.27557528,1959.9,1959.3,1.87592155]
[1772412473415,5.45989757,1960.0,1959.3,1.87592155]
[1772412474018,4.18437039,1960.0,1959.5,0.001]
[1772412474217,5.45988498,1960.0,1959.5,0.001]
[1772412474418,4.18437039,1960.0,1959.5,0.001]
[1772412474817,5.45988429,1960.0,1959.5,0.001]
[1772412475138,5.4598875,1960.0,1959.5,0.001]
[1772412475829,2.58837039,1959.9,1959.5,0.001]
[1772412476152,2.87151711,1960.0,1959.5,0.001]
[1772412476649,5.4598875,1960.0,1959.5,0.001]
[1772412476947,1.594,1959.9,1959.5,0.001]
[1772412477152,1.27564037,1959.8,1959.5,0.001]
[1772412477328,1.27564037,1959.8,1959.2,0.001]
[1772412477329,2.58837039,1959.7,1959.2,0.001]
[1772412479954,3.86413818,1959.7,1959.2,0.001]
[1772412480150,1.594,1959.6,1959.2,0.001]
[1772412480355,1.594,1959.6,1959.0,0.00153886]
[1772412480356,2.58837039,1959.3,1959.0,0.00153886]
[1772412480546,1.593,1959.2,1959.0,0.00153886]
[1772412480745,1.593,1959.2,1958.6,0.001]
[1772412481251,2.58837039,1959.1,1958.6,0.001]
[1772412481766,1.593,1959.2,1958.3,1.27761329]
[1772412481767,4.04500991,1958.8,1958.3,1.27761329]
[1772412481967,1.593,1958.8,1958.3,0.001]
[1772412482655,2.58837039,1959.8,1958.7,4.25563097]
[1772412482869,2.58837039,1959.8,1958.7,2.79899145]
[1772412483165,2.58837039,1959.8,1958.4,5.75563097]
[1772412483365,2.58837039,1959.8,1958.4,4.25563097]
[1772412483740,2.58837039,1959.8,1958.5,2.79899145]
[1772412484476,3.86407585,1959.7,1958.7,1.27635676]
[1772412484941,2.58837039,1959.6,1958.7,1.27635676]
[1772412485143,2.58837039,1959.5,1958.6,1.87637398]
[1772412485358,1.45663952,1959.6,1958.6,1.27637398]
[1772412485359,2.58837039,1959.3,1958.6,1.27637398]
[1772412486491,1.591,1959.2,1958.3,4.07660892]
[1772412487773,1.591,1959.2,1958.4,0.001]
[1772412488470,2.58837039,1959.0,1958.4,0.001]
[1772412489670,2.58837039,1958.9,1958.4,0.001]
[1772412490046,3.86446655,1959.1,1958.4,0.001]
[1772412490259,2.58837039,1959.0,1958.4,0.001]
[1772412490989,1.27622645,1958.9,1958.4,0.001]
[1772412491781,4.17537039,1959.4,1958.4,2.79999145]
[1772412492169,4.17537039,1959.4,1958.5,3.39899145]
[1772412492373,2.58837039,1959.3,1958.5,0.6]
[1772412493290,4.04500991,1959.1,1958.5,0.6]
[1772412493469,2.58837039,1959.0,1958.4,0.001]
[1772412493671,4.17537039,1958.9,1958.4,0.001]
[1772412494695,2.46727151,1958.8,1958.4,0.001]
[1772412494989,2.46727151,1958.7,1958.2,0.001]
[1772412495494,2.46727151,1958.5,1958.2,0.001]
[1772412495689,4.05327151,1958.4,1958.2,0.001]
[1772412497572,3.98803656,1958.3,1958.0,0.00253886]
[1772412497777,3.98803656,1958.3,1957.5,1.27710015]
[1772412498687,1.27647334,1958.6,1957.6,2.69747329]
[1772412498892,5.10510864,1958.9,1957.6,2.69747329]
[1772412498893,1.27631884,1958.8,1957.8,2.69747329]
[1772412499088,1.586,1958.7,1957.8,2.69747329]
[1772412499291,1.27631884,1958.8,1957.8,2.69747329]
[1772412499601,2.86230449,1958.8,1958.1,1.27674786]
[1772412500431,1.586,1958.8,1958.1,1.27674786]
[1772412500571,1.586,1958.8,1958.2,2.69747329]
[1772412500773,0.00153886,1959.0,1958.4,2.69747329]
[1772412501282,0.00153886,1959.0,1958.4,4.15411281]
[1772412501477,0.00153886,1959.0,1958.2,2.60653303]
[1772412501478,0.00153886,1959.0,1958.2,5.30400632]
[1772412501798,0.00153886,1959.0,1958.4,1.27655228]
[1772412501973,0.00153886,1959.0,1958.4,3.97402557]
[1772412502168,2.85980386,1959.6,1958.5,4.15411281]
[1772412502370,2.71341909,1959.7,1958.8,1.45663952]
[1772412502583,0.00353886,1960.0,1959.6,1.45663952]
[1772412502779,0.002,1960.4,1959.6,1.45663952]
[1772412503022,3.98867337,1960.4,1959.3,2.69747329]
[1772412503474,5.57267337,1960.4,1959.3,2.69747329]
[1772412503675,1.586,1960.4,1959.4,1.27590078]
[1772412503973,1.586,1960.4,1959.5,2.69747329]
[1772412504373,1.586,1960.4,1959.6,4.15411281]
[1772412506019,1.586,1960.4,1959.7,1.27570546]
[1772412506535,2.71141909,1960.3,1959.3,2.69747329]
[1772412506737,1.586,1960.4,1959.3,2.69747329]
[1772412506942,1.586,1960.4,1959.6,2.69747329]
[1772412507937,0.002,1960.4,1959.6,2.69747329]
[1772412508241,0.002,1960.4,1959.7,1.27570546]
[1772412508625,0.002,1960.4,1959.7,3.97317875]
[1772412509213,0.002,1960.4,1959.8,2.69747329]
[1772412509412,0.002,1960.4,1959.8,3.29747329]
[1772412509713,0.002,1960.4,1959.9,2.69747329]
[1772412510120,0.002,1960.4,1960.0,1.2755102]
[1772412510710,0.002,1960.7,1960.0,3.97298349]
[1772412510910,0.002,1960.7,1960.1,2.69747329]
[1772412512136,0.002,1960.7,1960.2,1.27538006]
[1772412513741,0.002,1960.3,1960.2,1.27538006]
[1772412513949,0.002,1960.4,1960.2,1.27538006]
[1772412514143,0.002,1960.7,1960.2,1.27538006]
[1772412514444,0.002,1960.6,1960.2,1.27538006]
[1772412515128,2.71341909,1960.6,1959.9,1.27557528]
[1772412515310,0.002,1960.6,1959.9,3.97304857]
[1772412515517,0.002,1960.6,1960.0,2.69747329]
[1772412515709,0.002,1960.7,1960.0,2.69747329]
[1772412516647,0.002,1960.7,1960.1,3.97291842]
[1772412517018,0.002,1960.7,1960.1,5.45991842]
[1772412517351,0.002,1960.7,1960.1,1.27544513]
[1772412517640,2.71341909,1960.7,1960.1,1.27544513]
[1772412518243,0.002,1960.7,1960.2,2.69747329]
[1772412518821,0.002,1960.7,1960.3,1.275315]
[1772412519150,0.00153886,1961.0,1960.5,2.04001675]
[1772412519365,2.71141909,1961.6,1960.7,2.69747329]
[1772412519531,0.002,1961.7,1960.8,2.04001675]
[1772412520053,0.002,1961.7,1960.8,4.73749004]
[1772412520548,0.002,1961.7,1961.1,4.73749004]
[1772412520850,0.002,1961.7,1961.2,1.27472975]
[1772412521918,2.71341909,1961.7,1960.8,1.2749898]
[1772412522748,2.71341909,1961.7,1960.5,6.46063889]
[1772412523050,2.71141909,1961.5,1960.5,6.46063889]
[1772412523419,2.71141909,1961.5,1960.5,5.10063889]
[1772412525349,0.002,1961.7,1960.6,2.69747329]
[1772412525573,2.71141909,1961.6,1960.5,6.59063889]
[1772412525870,2.71341909,1961.4,1960.5,5.10063889]
[1772412527448,3.98807289,1961.4,1960.5,5.10063889]
[1772412528174,2.48259232,1961.3,1960.5,1.2751849]
[1772412529873,2.48259232,1961.1,1960.4,0.6]
[1772412530043,2.48259232,1961.1,1960.4,1.87524629]
[1772412530547,2.48259232,1961.1,1960.4,0.6]
[1772412530852,2.48259232,1961.1,1960.4,1.87524683]
[1772412531261,2.48259232,1961.1,1960.4,0.6]
[1772412531869,3.75745208,1961.0,1960.4,0.6]
[1772412532080,3.75745208,1961.0,1960.4,1.87523382]
[1772412532370,3.75745208,1961.0,1960.4,0.6]
[1772412532371,2.48259232,1960.9,1960.4,0.6]
[1772412533948,2.48259232,1960.9,1960.3,1.27630527]
[1772412533949,2.48259232,1960.7,1960.3,0.001]
[1772412534471,2.48259232,1960.8,1960.3,0.001]
[1772412535659,2.48259232,1960.6,1960.0,0.00253886]
[1772412535867,2.48259232,1960.6,1960.0,1.27802941]
[1772412536059,1.2751849,1960.5,1960.0,0.00253886]
[1772412536572,2.48259232,1960.6,1960.0,0.00253886]
[1772412536978,3.75771916,1960.6,1960.0,0.00253886]
[1772412538186,2.48259232,1960.5,1960.0,0.00253886]
[1772412538482,2.48259232,1960.5,1960.4,0.001]
[1772412538653,2.48259232,1960.5,1960.0,0.00253886]
[1772412538850,2.48259232,1960.5,1960.3,0.001]
[1772412539079,2.48259232,1960.5,1960.1,0.001]
[1772412540190,3.75784226,1960.4,1960.1,0.001]
[1772412540388,5.32684226,1960.4,1960.1,0.001]
[1772412540558,2.48259232,1960.3,1958.9,8.23798011]
[1772412540889,2.48259232,1960.3,1959.1,3.75837908]
[1772412542188,2.48259232,1960.1,1959.1,3.75837908]
[1772412542388,2.48259232,1960.1,1959.1,5.24237908]
[1772412542589,2.48259232,1960.1,1959.2,2.48228292]
[1772412544062,2.48259232,1959.9,1959.3,1.2759659]
[1772412544268,2.48259232,1959.9,1959.2,1.27598671]
[1772412544966,4.05159232,1959.9,1959.2,1.27598671]
[1772412545168,2.48259232,1959.8,1959.2,1.27598671]
[1772412546410,1.569,1959.9,1959.1,5.10423541]
[1772412546591,2.84458243,1959.9,1959.1,7.58651833]
[1772412546796,2.84458243,1959.9,1959.2,2.48228292]
[1772412547175,1.569,1959.9,1959.2,2.48228292]
[1772412547375,2.84457852,1959.9,1959.2,2.48228292]
[1772412547703,2.84457852,1959.9,1959.1,5.10423541]
[1772412547704,2.48259232,1959.8,1959.1,5.10423541]
[1772412547905,2.48259232,1959.8,1959.1,1.27609616]
[1772412548402,2.48259232,1959.6,1959.0,0.00153886]
[1772412548579,1.27564404,1959.8,1959.0,0.00153886]
[1772412548787,3.75823636,1959.8,1959.0,0.00153886]
[1772412549102,1.569,1959.7,1959.0,0.00153886]
[1772412549306,3.75823636,1959.8,1959.0,2.48382178]
[1772412549809,2.48259232,1959.8,1959.0,2.48382178]
[1772412550405,2.48259232,1959.8,1959.1,1.27609616]
[1772412550710,2.84462768,1959.9,1959.1,3.75837908]
[1772412551273,1.569,1959.9,1959.2,0.001]
[1772412551476,3.75807948,1960.1,1959.2,2.48328292]
[1772412551674,2.48459232,1960.0,1959.2,2.48328292]
[1772412552297,2.48459232,1960.0,1959.2,0.001]
[1772412552504,2.48259232,1959.5,1959.0,0.00253886]
[1772412554475,3.75847955,1959.5,1959.0,0.00253886]
[1772412555406,2.32945205,1959.6,1959.0,0.00253886]
[1772412556597,1.27583567,1959.5,1959.0,0.00253886]
[1772412556777,2.32945205,1959.4,1959.0,0.00253886]
[1772412558997,2.42262043,1959.2,1958.4,1.27651373]
[1772412560312,2.42262043,1959.2,1958.4,3.82473012]
[1772412561295,5.26866143,1959.2,1958.4,3.82473012]
[1772412561496,2.42262043,1959.1,1958.4,3.82473012]
[1772412563621,3.69872284,1959.1,1958.4,3.82473012]
[1772412564854,3.99262043,1959.6,1958.5,2.54821639]
[1772412564997,2.42262043,1959.3,1958.5,2.54821639]
[1772412566217,1.27603103,1959.2,1958.6,1.27642193]
[1772412566413,2.42262043,1959.1,1958.6,1.27642193]
[1772412567333,2.42262043,1959.1,1958.5,0.001]
[1772412567624,2.42262043,1959.0,1958.2,0.001]
[1772412567797,2.42262043,1958.7,1958.2,0.001]
[1772412568228,2.42262043,1958.5,1958.2,0.001]
[1772412568952,1.57,1958.6,1958.2,2.54921639]
[1772412569239,3.99262043,1958.9,1958.2,2.54921639]
[1772412569526,2.42262043,1959.2,1958.2,2.54921639]
[1772412569733,1.572,1959.4,1958.2,2.54921639]
[1772412569932,1.572,1959.4,1958.4,2.54821639]
[1772412570104,2.84791666,1959.4,1958.5,2.54821639]
[1772412570427,2.84790461,1959.4,1958.6,3.82463832]
[1772412570614,1.572,1959.4,1958.6,3.82463832]
[1772412570820,0.002,1959.4,1958.7,2.54821639]
[1772412571327,1.27790252,1959.4,1958.7,2.54821639]
[1772412572123,0.002,1959.4,1958.7,2.54821639]
[1772412572511,0.002,1959.4,1958.8,3.82450799]
[1772412573314,0.002,1959.4,1958.8,1.2762916]
[1772412573514,2.42462043,1959.3,1958.7,1.27633267]
[1772412575409,3.70061737,1959.3,1958.6,5.10550265]
[1772412576334,2.42462043,1959.3,1958.6,5.10550265]
[1772412576853,3.70059148,1959.3,1958.6,5.10550265]
[1772412579222,2.42462043,1959.3,1958.6,5.10550265]
[1772412579437,2.42462043,1959.3,1958.7,0.001]
[1772412579642,3.70058921,1959.3,1958.7,0.001]
[1772412580401,2.42462043,1959.3,1958.7,0.001]
[1772412580546,3.70058817,1959.3,1958.7,0.001]
[1772412581249,2.42262043,1959.2,1958.7,0.001]
[1772412582840,2.42262043,1959.0,1958.5,1.27744025]
[1772412583755,0.002,1959.3,1958.6,2.54821639]
[1772412583953,0.002,1959.3,1958.8,2.54821639]
[1772412585858,0.002,1959.3,1959.2,2.54821639]
[1772412586148,1e-08,1959.6,1959.2,2.54821639]
[1772412589749,1e-08,1959.6,1959.3,1.2759659]
[1772412591349,1e-08,1959.6,1959.3,3.76141916]
[1772412592761,1e-08,1959.6,1959.4,2.48545326]
[1772412593161,1e-08,1959.6,1959.3,1.2769659]
[1772412593364,1e-08,1959.6,1958.6,7.59097932]
[1772412593365,2.49194261,1959.4,1958.6,7.59097932]
[1772412593536,2.49194261,1959.4,1958.6,9.08797932]
[1772412593731,2.49194261,1959.4,1959.2,0.001]
[1772412594832,2.49194261,1959.4,1957.8,0.40951984]
[1772412594833,3.95202163,1959.4,1957.8,0.40951984]
[1772412595176,2.49194261,1958.6,1957.9,2.48545326]
[1772412595333,2.49194261,1958.6,1957.8,4.11046851]
[1772412595534,0.00153886,1959.0,1957.9,2.48545326]
[1772412595865,2.49348147,1959.0,1957.9,2.48545326]
[1772412596073,2.49194261,1958.9,1958.0,4.11046851]
[1772412596435,2.49194261,1958.7,1958.1,1.27674786]
[1772412597035,2.49194261,1958.7,1958.0,5.38723729]
[1772412597567,1.27770701,1959.0,1958.2,2.48545326]
[1772412597862,0.00153886,1959.0,1958.2,2.48545326]
[1772412598062,0.00153886,1959.0,1958.4,2.48545326]
[1772412598363,0.00153886,1959.0,1958.5,3.98145326]
[1772412598563,0.00153886,1959.0,1958.6,1.27642193]
[1772412600876,0.002,1959.5,1958.8,2.48545326]
[1772412601178,0.002,1959.5,1958.9,1.499]
[1772412601179,2.49194261,1959.4,1958.9,1.499]
[1772412601478,2.49194261,1959.4,1958.7,4.11046851]
[1772412601677,2.49194261,1958.8,1958.0,1.50053886]
[1772412601980,2.49194261,1958.8,1958.1,4.11046851]
[1772412602645,2.49194261,1958.6,1958.0,0.00153886]
[1772412602849,2.49194261,1958.5,1958.0,0.00153886]
[1772412603261,2.49194261,1958.0,1957.6,0.001]
[1772412604695,2.49194261,1958.0,1957.5,0.001]
[1772412604696,2.49194261,1957.7,1957.5,0.001]
[1772412604904,5.07937689,1958.1,1957.5,4.11146851]
[1772412605052,2.49194261,1958.1,1957.5,4.11146851]
[1772412605247,3.76869883,1958.1,1957.5,4.11146851]
[1772412605494,2.49194261,1958.1,1957.5,4.11146851]
[1772412605653,3.76869104,1958.1,1957.5,4.11146851]
[1772412605856,2.49194261,1958.1,1957.5,4.11146851]
[1772412606398,5.22876964,1958.1,1957.5,4.11146851]
[1772412606554,2.49194261,1958.0,1957.5,0.001]
[1772412606880,2.49194261,1958.1,1957.5,0.001]
[1772412607064,2.49194261,1958.1,1957.5,4.11146851]
[1772412607065,2.49194261,1958.0,1957.5,4.11146851]
[1772412608247,2.49194261,1958.0,1957.5,0.001]
[1772412608453,2.49194261,1957.8,1957.5,0.001]
[1772412608885,1.27700873,1957.7,1957.5,0.001]
[1772412609085,3.76895134,1957.7,1957.5,0.001]
[1772412609790,2.49194261,1957.5,1957.1,0.1573129]
[1772412609987,2.49194261,1957.5,1957.1,4.26778141]
[1772412610781,2.49194261,1957.5,1957.1,0.1573129]
[1772412610978,1.27720445,1957.4,1957.1,0.1573129]
[1772412611178,1.27720445,1957.4,1957.0,0.00253886]
[1772412611179,2.49194261,1957.1,1956.7,0.001]
[1772412611379,3.76914706,1957.4,1956.8,4.11300737]
[1772412611677,2.49194261,1957.3,1956.8,1.50707303]
[1772412612066,5.32805435,1957.6,1956.8,1.50707303]
[1772412613078,1.559,1957.6,1956.9,3.76298404]
[1772412613274,2.83607907,1957.6,1956.9,3.76298404]
[1772412613456,2.83607907,1957.6,1957.0,1.50707303]
[1772412613856,2.58743428,1957.9,1957.0,3.92033248]
[1772412614059,3.86434469,1957.9,1957.1,2.41325945]
[1772412614981,3.86434469,1957.9,1957.2,1.27733496]
[1772412615485,1.27835942,1958.0,1957.3,3.92033248]
[1772412615659,2.45136125,1957.9,1957.3,1.50707303]
[1772412615855,2.73843844,1958.0,1957.3,1.50707303]
[1772412616081,2.45136125,1957.9,1957.3,1.50707303]
[1772412616286,0.00153886,1958.0,1957.3,3.92033248]
[1772412616488,0.00153886,1958.0,1957.4,1.50707303]
[1772412616654,0.00153886,1958.0,1957.5,2.41325945]
[1772412617255,0.00153886,1958.0,1957.6,1.27707396]
[1772412617488,0.00153886,1958.0,1957.5,3.69035017]
[1772412617688,0.00153886,1958.0,1957.6,1.50707303]
[1772412617858,2.52963171,1958.0,1957.5,1.50707303]
[1772412618058,2.52963171,1958.0,1957.3,1.50707303]
[1772412618683,2.52963171,1958.0,1957.4,1.50707303]
[1772412618855,2.52963171,1958.0,1957.3,1.50707303]
[1772412619457,2.52809285,1957.8,1957.3,1.50707303]
[1772412619654,2.52809285,1957.8,1957.3,1.50807303]
[1772412620396,1.27687828,1957.9,1957.3,2.78533247]
[1772412620554,2.52809285,1957.7,1957.2,0.001]
[1772412621160,2.52809285,1957.7,1957.2,1.2783206]
[1772412621366,3.06401183,1957.9,1957.2,1.2783206]
[1772412621670,1.2769052,1957.9,1957.2,3.66436678]
[1772412622206,1.2769052,1957.9,1957.2,0.001]
[1772412622207,1.46007902,1957.6,1957.2,0.001]
[1772412622373,2.52809285,1957.5,1957.0,0.001]
[1772412622696,3.98817187,1957.3,1956.7,0.001]
[1772412623067,1.559,1957.5,1956.7,3.66469904]
[1772412623390,5.54717187,1957.5,1956.7,3.66469904]
[1772412623776,1.27720445,1957.4,1956.7,3.66469904]
[1772412624165,1.27720445,1957.4,1956.7,0.001]
[1772412624366,1.27720445,1957.4,1956.2,5.11178163]
[1772412624367,2.52809285,1957.1,1956.2,5.11178163]
[1772412624578,2.52809285,1957.1,1956.3,1.27788722]
[1772412624784,2.83620445,1957.4,1956.4,2.38604618]
[1772412624986,5.3642973,1957.4,1956.4,2.38604618]
[1772412625800,2.83620445,1957.4,1956.6,2.38604618]
[1772412628682,5.3642973,1957.4,1956.6,2.38604618]
[1772412628887,5.3642973,1957.4,1956.5,2.77179197]
[1772412628888,2.52809285,1957.2,1956.4,1.27781297]
[1772412629081,2.52809285,1957.2,1956.3,5.15693194]
[1772412629405,2.52809285,1957.2,1956.3,3.66393194]
[1772412629703,1.27720445,1957.4,1956.4,2.38604618]
[1772412630478,1.27716782,1957.5,1956.4,2.38604618]
[1772412630694,1.27716782,1957.5,1956.6,2.38604618]
[1772412630889,1.27716782,1957.5,1956.7,3.87904618]
[1772412632206,1.27716782,1957.5,1956.8,2.38604618]
[1772412632928,1.27716782,1957.5,1956.9,1.27753078]
[1772412633383,3.80526067,1957.5,1956.8,2.38604618]
[1772412634409,3.80526067,1957.5,1956.8,3.66364186]
[1772412635106,1.27716782,1957.5,1956.8,3.66364186]
[1772412638720,2.83611905,1957.6,1956.9,2.38604618]
[1772412639512,5.3642119,1957.6,1956.9,2.38604618]
[1772412639737,1.27891882,1957.9,1957.0,2.38604618]
[1772412639887,0.28613217,1957.8,1957.2,2.38604618]
[1772412640092,2.81422502,1957.8,1956.9,2.38604618]
[1772412640390,2.81422502,1957.7,1956.9,2.38604618]
[1772412640807,1.27707396,1957.6,1956.9,7.4961643]
[1772412641014,1.27707396,1957.6,1956.9,3.66353381]
[1772412641213,1.27707396,1957.6,1956.9,3.63811439]
[1772412642643,2.81422502,1957.5,1956.5,3.66383815]
[1772412642844,1.2772697,1957.3,1956.5,5.15783815]
[1772412643496,1.2772697,1957.3,1956.6,1.494]
[1772412643899,0.28613217,1957.2,1956.7,2.38604618]
[1772412644130,1.27718197,1957.5,1956.7,2.38604618]
[1772412644695,0.28613217,1957.4,1956.8,2.38704618]
[1772412644898,0.28613217,1957.4,1957.0,2.38604618]
[1772412646327,1.27907735,1957.6,1957.0,2.38604618]
[1772412646533,0.28613217,1957.5,1957.0,3.88004618]
[1772412647501,1.27720445,1957.4,1957.0,1.494]
[1772412647798,1.56331751,1957.5,1956.8,3.77607627]
[1772412648003,0.28613217,1957.3,1956.8,3.77607627]
[1772412648403,1.27908144,1957.6,1956.9,2.49751899]
[1772412648795,1.27908144,1957.6,1956.8,2.7735866]
[1772412648796,2.46517744,1957.5,1956.8,2.7735866]
[1772412649003,2.46517744,1957.4,1956.8,0.001]
[1772412649404,3.74244714,1957.3,1956.8,1.27858922]
[1772412649599,5.11033318,1957.6,1956.8,1.27858922]
[1772412649600,1.27912592,1957.6,1956.8,2.49851899]
[1772412649800,0.002,1957.6,1956.8,2.49851899]
[1772412650032,1.27907495,1957.6,1956.8,2.49851899]
[1772412650733,0.002,1957.6,1956.8,2.49851899]
[1772412650908,1.27907994,1957.6,1956.8,2.49851899]
[1772412651325,0.002,1957.6,1956.8,2.49851899]
[1772412651525,0.002,1957.6,1957.0,2.49751899]
[1772412651906,0.002,1957.6,1957.2,2.49751899]
[1772412652317,0.002,1957.7,1957.2,2.49751899]